[Event "Titled Tuesday Blitz October 11 Early 2022"]
[White "Liyanage, Ranindu Dilshan"]
[Black "Zemlyanskii, Ivan"]
[WhiteFideId "9915834"]
[BlackFideId "24249971"]
[WhiteElo "2210"]
[BlackElo "2107"]
[Result "1-0"]
[Round "08"]
[TimeControl "180+1"]
[Date "2022.10.11"]
[WhiteClock "0:00:07"]
[BlackClock "0:00:01"]

1. e4 {[%clk 0:03:00]}  c5 {[%clk 0:02:59]} 2. Nc3 {[%clk 0:03:00]}  e6 {[%clk 0:02:59]} 3. g3 {[%clk 0:02:56]}  Nc6 {[%clk 0:02:55]} 4. Bg2 {[%clk 0:02:54]}  Nf6 {[%clk 0:02:14]} 5. Nge2 {[%clk 0:02:51]}  d5 {[%clk 0:02:14]} 6. exd5 {[%clk 0:02:52]}  exd5 {[%clk 0:02:14]} 7. d4 {[%clk 0:02:53]}  cxd4 {[%clk 0:02:14]} 8. Nxd4 {[%clk 0:02:53]}  Bg4 {[%clk 0:02:15]} 9. Nde2 {[%clk 0:02:52]}  Bb4 {[%clk 0:02:07]} 10. O-O {[%clk 0:02:52]}  Bxc3 {[%clk 0:01:59]} 11. bxc3 {[%clk 0:02:52]}  O-O {[%clk 0:01:53]} 12. Rb1 {[%clk 0:02:51]}  Re8 {[%clk 0:01:47]} 13. f3 {[%clk 0:02:47]}  Bc8 {[%clk 0:01:41]} 14. Bg5 {[%clk 0:02:42]}  h6 {[%clk 0:01:35]} 15. Bxf6 {[%clk 0:02:41]}  Qxf6 {[%clk 0:01:36]} 16. Re1 {[%clk 0:02:35]}  Rb8 {[%clk 0:01:30]} 17. Qxd5 {[%clk 0:02:30]}  Be6 {[%clk 0:01:30]} 18. Qc5 {[%clk 0:02:26]}  Bxa2 {[%clk 0:01:28]} 19. Ra1 {[%clk 0:02:26]}  Re5 {[%clk 0:01:22]} 20. Qf2 {[%clk 0:02:13]}  Bc4 {[%clk 0:01:17]} 21. Nd4 {[%clk 0:02:10]}  Rxe1+ {[%clk 0:01:17]} 22. Rxe1 {[%clk 0:02:11]}  a5 {[%clk 0:01:17]} 23. f4 {[%clk 0:02:06]}  Nxd4 {[%clk 0:01:10]} 24. cxd4 {[%clk 0:02:07]}  a4 {[%clk 0:01:05]} 25. Qe3 {[%clk 0:02:02]}  b5 {[%clk 0:00:58]} 26. d5 {[%clk 0:01:56]}  Qd6 {[%clk 0:00:56]} 27. Qe5 {[%clk 0:01:46]}  Qb6+ {[%clk 0:00:55]} 28. Kh1 {[%clk 0:01:42]}  a3 {[%clk 0:00:49]} 29. d6 {[%clk 0:01:38]}  Rd8 {[%clk 0:00:42]} 30. d7 {[%clk 0:01:33]}  Be6 {[%clk 0:00:39]} 31. f5 {[%clk 0:01:11]}  Bxd7 {[%clk 0:00:28]} 32. Rd1 {[%clk 0:00:58]}  Re8 {[%clk 0:00:25]} 33. Qa1 {[%clk 0:00:43]}  Bc6 {[%clk 0:00:21]} 34. Qxa3 {[%clk 0:00:39]}  Bxg2+ {[%clk 0:00:16]} 35. Kxg2 {[%clk 0:00:40]}  Re2+ {[%clk 0:00:15]} 36. Kh3 {[%clk 0:00:33]}  Qf2 {[%clk 0:00:12]} 37. Rd8+ {[%clk 0:00:08]}  Kh7 {[%clk 0:00:12]} 38. Qd3 {[%clk 0:00:08]}  Qxh2+ {[%clk 0:00:10]} 39. Kg4 {[%clk 0:00:09]}  h5+ {[%clk 0:00:09]} 40. Kf4 {[%clk 0:00:08]}  Qf2+ {[%clk 0:00:07]} 41. Qf3 {[%clk 0:00:08]}  Qh2 {[%clk 0:00:07]} 42. Qa8 {[%clk 0:00:06]}  Rf2+ {[%clk 0:00:05]} 43. Ke4 {[%clk 0:00:06]}  Qg2+ {[%clk 0:00:03]} 44. Kd4 {[%clk 0:00:07]}  Qxa8 {[%clk 0:00:01]} 45. Rxa8 {[%clk 0:00:07]} 1-0


[Site "https://www.chess.com"]

[Event "Titled Tuesday Blitz October 11 Early 2022"]
[White "Makhmudov, Shukhrat"]
[Black "Hanley, Craig A"]
[WhiteFideId "14200775"]
[BlackFideId "408514"]
[WhiteElo "2135"]
[BlackElo "2439"]
[Result "0-1"]
[Round "08"]
[TimeControl "180+1"]
[Date "2022.10.12"]
[WhiteClock "0:00:33"]
[BlackClock "0:00:33"]

1. e4 {[%clk 0:03:00]}  e5 {[%clk 0:02:57]} 2. Nf3 {[%clk 0:03:00]}  Nc6 {[%clk 0:02:58]} 3. Bb5 {[%clk 0:02:59]}  f5 {[%clk 0:02:58]} 4. d3 {[%clk 0:02:59]}  fxe4 {[%clk 0:02:57]} 5. dxe4 {[%clk 0:02:59]}  Nf6 {[%clk 0:02:58]} 6. Nc3 {[%clk 0:02:52]}  d6 {[%clk 0:02:55]} 7. h3 {[%clk 0:02:51]}  h6 {[%clk 0:02:52]} 8. O-O {[%clk 0:02:44]}  g5 {[%clk 0:02:52]} 9. Nh2 {[%clk 0:02:34]}  Be6 {[%clk 0:02:47]} 10. f3 {[%clk 0:02:30]}  Bg7 {[%clk 0:02:38]} 11. Be3 {[%clk 0:02:30]}  a6 {[%clk 0:02:36]} 12. Ba4 {[%clk 0:02:29]}  Nh5 {[%clk 0:02:26]} 13. Nd5 {[%clk 0:02:24]}  Qd7 {[%clk 0:02:23]} 14. Ng4 {[%clk 0:02:16]}  O-O-O {[%clk 0:02:21]} 15. c4 {[%clk 0:02:10]}  Nf4 {[%clk 0:02:19]} 16. Bxc6 {[%clk 0:01:57]}  bxc6 {[%clk 0:02:19]} 17. Qa4 {[%clk 0:01:48]}  Rdf8 {[%clk 0:01:47]} 18. Nb4 {[%clk 0:01:22]}  c5 {[%clk 0:01:30]} 19. Qxa6+ {[%clk 0:01:13]}  Kd8 {[%clk 0:01:30]} 20. Nd5 {[%clk 0:01:12]}  Bxd5 {[%clk 0:01:17]} 21. cxd5 {[%clk 0:01:09]}  h5 {[%clk 0:01:17]} 22. Nf2 {[%clk 0:01:08]}  g4 {[%clk 0:01:08]} 23. fxg4 {[%clk 0:01:08]}  Bh6 {[%clk 0:00:53]} 24. Rae1 {[%clk 0:00:52]}  Rfg8 {[%clk 0:00:50]} 25. Kh2 {[%clk 0:00:46]}  hxg4 {[%clk 0:00:49]} 26. Nxg4 {[%clk 0:00:46]}  Rxg4 {[%clk 0:00:49]} 27. hxg4 {[%clk 0:00:46]}  Qxg4 {[%clk 0:00:43]} 28. Qa8+ {[%clk 0:00:45]}  Ke7 {[%clk 0:00:43]} 29. Bxf4 {[%clk 0:00:39]}  Bxf4+ {[%clk 0:00:42]} 30. Kg1 {[%clk 0:00:37]}  Rh1+ {[%clk 0:00:32]} 31. Kf2 {[%clk 0:00:34]}  Qg3+ {[%clk 0:00:32]} 32. Ke2 {[%clk 0:00:35]}  Qe3+ {[%clk 0:00:32]} 33. Kd1 {[%clk 0:00:33]}  Qd2# {[%clk 0:00:33]} 0-1


[Site "https://www.chess.com"]

[Event "Titled Tuesday Blitz October 11 Early 2022"]
[White "Manon-og, Ramon Jr."]
[Black "Zaksaite, Salomeja"]
[WhiteFideId "5200776"]
[BlackFideId "12801496"]
[WhiteElo "2223"]
[BlackElo "2094"]
[Result "1-0"]
[Round "08"]
[TimeControl "180+1"]
[Date "2022.10.12"]
[WhiteClock "0:00:21"]
[BlackClock "0:00:01"]

1. e4 {[%clk 0:03:00]}  c5 {[%clk 0:02:57]} 2. Nf3 {[%clk 0:03:00]}  e6 {[%clk 0:02:55]} 3. g3 {[%clk 0:03:00]}  Nf6 {[%clk 0:02:53]} 4. Nc3 {[%clk 0:03:00]}  Nc6 {[%clk 0:02:52]} 5. Bg2 {[%clk 0:03:00]}  e5 {[%clk 0:02:49]} 6. O-O {[%clk 0:02:58]}  Be7 {[%clk 0:02:49]} 7. d3 {[%clk 0:02:58]}  O-O {[%clk 0:02:48]} 8. Nd5 {[%clk 0:02:58]}  d6 {[%clk 0:02:46]} 9. c4 {[%clk 0:02:59]}  Be6 {[%clk 0:02:46]} 10. Be3 {[%clk 0:02:58]}  Rb8 {[%clk 0:02:38]} 11. a4 {[%clk 0:02:57]}  b6 {[%clk 0:02:38]} 12. Qd2 {[%clk 0:02:56]}  a6 {[%clk 0:02:36]} 13. Ng5 {[%clk 0:02:55]}  h6 {[%clk 0:02:34]} 14. Nxe6 {[%clk 0:02:54]}  fxe6 {[%clk 0:02:34]} 15. Nc3 {[%clk 0:02:52]}  Nd4 {[%clk 0:02:25]} 16. Bxd4 {[%clk 0:02:36]}  exd4 {[%clk 0:02:22]} 17. Ne2 {[%clk 0:02:36]}  b5 {[%clk 0:02:20]} 18. axb5 {[%clk 0:02:35]}  axb5 {[%clk 0:02:20]} 19. b3 {[%clk 0:02:35]}  bxc4 {[%clk 0:02:13]} 20. bxc4 {[%clk 0:02:35]}  Ng4 {[%clk 0:02:07]} 21. Nf4 {[%clk 0:02:34]}  Rf6 {[%clk 0:01:58]} 22. Bh3 {[%clk 0:02:31]}  Ne5 {[%clk 0:01:54]} 23. Kg2 {[%clk 0:02:12]}  Qd7 {[%clk 0:00:59]} 24. Rfb1 {[%clk 0:02:06]}  Rbf8 {[%clk 0:00:54]} 25. Rf1 {[%clk 0:01:39]}  Rxf4 {[%clk 0:00:34]} 26. gxf4 {[%clk 0:01:38]}  Ng6 {[%clk 0:00:34]} 27. f5 {[%clk 0:01:34]}  Nh4+ {[%clk 0:00:34]} 28. Kh1 {[%clk 0:01:34]}  exf5 {[%clk 0:00:33]} 29. exf5 {[%clk 0:01:33]}  Qc6+ {[%clk 0:00:25]} 30. f3 {[%clk 0:01:30]}  Bg5 {[%clk 0:00:22]} 31. Qf2 {[%clk 0:01:23]}  Nxf5 {[%clk 0:00:21]} 32. Ra7 {[%clk 0:01:06]}  Ne3 {[%clk 0:00:18]} 33. Bg2 {[%clk 0:00:54]}  Nxf1 {[%clk 0:00:14]} 34. Qxf1 {[%clk 0:00:50]}  Bf4 {[%clk 0:00:12]} 35. Qe1 {[%clk 0:00:49]}  Qe8 {[%clk 0:00:11]} 36. Qh4 {[%clk 0:00:42]}  g5 {[%clk 0:00:09]} 37. Qf2 {[%clk 0:00:35]}  Qe3 {[%clk 0:00:09]} 38. Qxe3 {[%clk 0:00:34]}  dxe3 {[%clk 0:00:09]} 39. Re7 {[%clk 0:00:28]}  Rb8 {[%clk 0:00:09]} 40. Bf1 {[%clk 0:00:26]}  Rb1 {[%clk 0:00:09]} 41. Kg2 {[%clk 0:00:23]}  Rb2+ {[%clk 0:00:10]} 42. Kh1 {[%clk 0:00:21]}  Rf2 {[%clk 0:00:09]} 43. Bg2 {[%clk 0:00:20]}  e2 {[%clk 0:00:09]} 44. Kg1 {[%clk 0:00:20]}  Rxg2+ {[%clk 0:00:01]} 45. Kxg2 {[%clk 0:00:21]}  Be5 {[%clk 0:00:01]} 46. Kf2 {[%clk 0:00:21]}  Bxh2 {[%clk 0:00:01]} 47. Kxe2 {[%clk 0:00:21]}  Be5 {[%clk 0:00:01]} 48. Re6 {[%clk 0:00:21]} 1-0


[Site "https://www.chess.com"]

[Event "Titled Tuesday Blitz October 11 Early 2022"]
[White "Manukian, Artak"]
[Black "Kaidanov, Gregory"]
[WhiteFideId "13301373"]
[BlackFideId "2008564"]
[WhiteElo "2520"]
[BlackElo "2651"]
[Result "0-1"]
[Round "08"]
[TimeControl "180+1"]
[Date "2022.10.12"]
[WhiteClock "0:00:03"]
[BlackClock "0:00:30"]

1. e4 {[%clk 0:03:00]}  e6 {[%clk 0:02:57]} 2. d4 {[%clk 0:03:00]}  d5 {[%clk 0:02:57]} 3. e5 {[%clk 0:03:01]}  c5 {[%clk 0:02:56]} 4. c3 {[%clk 0:03:02]}  Nc6 {[%clk 0:02:56]} 5. Nf3 {[%clk 0:03:03]}  Nh6 {[%clk 0:02:57]} 6. a3 {[%clk 0:02:57]}  cxd4 {[%clk 0:02:54]} 7. cxd4 {[%clk 0:02:56]}  Nf5 {[%clk 0:02:55]} 8. b4 {[%clk 0:02:52]}  Bd7 {[%clk 0:02:50]} 9. Nc3 {[%clk 0:02:48]}  Be7 {[%clk 0:02:46]} 10. Bb2 {[%clk 0:02:45]}  O-O {[%clk 0:02:43]} 11. Be2 {[%clk 0:02:23]}  f6 {[%clk 0:02:26]} 12. O-O {[%clk 0:02:20]}  fxe5 {[%clk 0:02:25]} 13. dxe5 {[%clk 0:02:14]}  Be8 {[%clk 0:02:22]} 14. Nb5 {[%clk 0:02:05]}  Bh5 {[%clk 0:02:19]} 15. Nbd4 {[%clk 0:01:58]}  Nfxd4 {[%clk 0:02:07]} 16. Nxd4 {[%clk 0:01:59]}  Bxe2 {[%clk 0:02:06]} 17. Nxe2 {[%clk 0:01:50]}  Qe8 {[%clk 0:02:03]} 18. Rc1 {[%clk 0:01:43]}  Qg6 {[%clk 0:01:54]} 19. f4 {[%clk 0:01:33]}  Rac8 {[%clk 0:01:39]} 20. g3 {[%clk 0:01:10]}  a6 {[%clk 0:01:38]} 21. Qc2 {[%clk 0:01:00]}  Qh5 {[%clk 0:01:28]} 22. Qd3 {[%clk 0:00:52]}  g6 {[%clk 0:01:16]} 23. Nd4 {[%clk 0:00:45]}  Nxd4 {[%clk 0:01:13]} 24. Bxd4 {[%clk 0:00:45]}  Qf5 {[%clk 0:01:11]} 25. Qxf5 {[%clk 0:00:39]}  gxf5 {[%clk 0:01:12]} 26. Kf2 {[%clk 0:00:37]}  Kf7 {[%clk 0:01:11]} 27. Ke3 {[%clk 0:00:37]}  h5 {[%clk 0:01:09]} 28. Kd2 {[%clk 0:00:32]}  Rh8 {[%clk 0:00:56]} 29. Rxc8 {[%clk 0:00:32]}  Rxc8 {[%clk 0:00:55]} 30. Rc1 {[%clk 0:00:32]}  Rxc1 {[%clk 0:00:53]} 31. Kxc1 {[%clk 0:00:33]}  h4 {[%clk 0:00:52]} 32. Kc2 {[%clk 0:00:32]}  Kg6 {[%clk 0:00:51]} 33. Bf2 {[%clk 0:00:23]}  hxg3 {[%clk 0:00:49]} 34. hxg3 {[%clk 0:00:22]}  Kh5 {[%clk 0:00:48]} 35. Kb3 {[%clk 0:00:18]}  b5 {[%clk 0:00:45]} 36. a4 {[%clk 0:00:18]}  Kg4 {[%clk 0:00:44]} 37. axb5 {[%clk 0:00:18]}  axb5 {[%clk 0:00:44]} 38. Kc3 {[%clk 0:00:18]}  Kf3 {[%clk 0:00:43]} 39. Be1 {[%clk 0:00:18]}  Ke2 {[%clk 0:00:41]} 40. Bd2 {[%clk 0:00:17]}  Kf2 {[%clk 0:00:40]} 41. Kd3 {[%clk 0:00:10]}  Kxg3 {[%clk 0:00:38]} 42. Ke2 {[%clk 0:00:10]}  Bf8 {[%clk 0:00:36]} 43. Ke3 {[%clk 0:00:09]}  Bh6 {[%clk 0:00:35]} 44. Kd4 {[%clk 0:00:03]}  Bxf4 {[%clk 0:00:30]} 0-1


[Site "https://www.chess.com"]

[Event "Titled Tuesday Blitz October 11 Early 2022"]
[White "Mihailidis, Anastasios"]
[Black "Kosteniuk, Alexandra"]
[WhiteFideId "4205588"]
[BlackFideId "4128125"]
[WhiteElo "2312"]
[BlackElo "2469"]
[Result "1/2-1/2"]
[Round "08"]
[TimeControl "180+1"]
[Date "2022.10.12"]
[WhiteClock "0:00:31"]
[BlackClock "0:00:37"]

1. e4 {[%clk 0:03:00]}  c6 {[%clk 0:03:00]} 2. d4 {[%clk 0:03:00]}  d5 {[%clk 0:03:00]} 3. exd5 {[%clk 0:03:00]}  cxd5 {[%clk 0:03:00]} 4. Bd3 {[%clk 0:03:01]}  Nc6 {[%clk 0:03:00]} 5. c3 {[%clk 0:03:01]}  Nf6 {[%clk 0:02:59]} 6. Bf4 {[%clk 0:03:01]}  Bg4 {[%clk 0:02:58]} 7. Qb3 {[%clk 0:03:01]}  Qc8 {[%clk 0:02:57]} 8. Nd2 {[%clk 0:03:01]}  e6 {[%clk 0:02:55]} 9. Ngf3 {[%clk 0:03:01]}  Bxf3 {[%clk 0:02:55]} 10. Nxf3 {[%clk 0:03:01]}  Be7 {[%clk 0:02:56]} 11. O-O {[%clk 0:03:01]}  O-O {[%clk 0:02:55]} 12. Rac1 {[%clk 0:03:01]}  a6 {[%clk 0:02:54]} 13. Ne5 {[%clk 0:02:56]}  b5 {[%clk 0:02:49]} 14. a3 {[%clk 0:02:43]}  Nd7 {[%clk 0:02:39]} 15. Nxd7 {[%clk 0:02:38]}  Qxd7 {[%clk 0:02:39]} 16. Qc2 {[%clk 0:02:36]}  h6 {[%clk 0:02:38]} 17. Qd2 {[%clk 0:02:32]}  Bd6 {[%clk 0:02:36]} 18. Rfe1 {[%clk 0:02:18]}  Bxf4 {[%clk 0:01:55]} 19. Qxf4 {[%clk 0:02:17]}  f5 {[%clk 0:01:55]} 20. Qe3 {[%clk 0:02:11]}  f4 {[%clk 0:01:49]} 21. Qxe6+ {[%clk 0:02:08]}  Qxe6 {[%clk 0:01:46]} 22. Rxe6 {[%clk 0:02:09]}  Rf6 {[%clk 0:01:40]} 23. Rce1 {[%clk 0:02:07]}  Kf7 {[%clk 0:01:39]} 24. Rxf6+ {[%clk 0:01:48]}  Kxf6 {[%clk 0:01:39]} 25. g3 {[%clk 0:01:43]}  g5 {[%clk 0:01:38]} 26. h4 {[%clk 0:01:42]}  Rb8 {[%clk 0:01:37]} 27. hxg5+ {[%clk 0:01:40]}  hxg5 {[%clk 0:01:37]} 28. Kg2 {[%clk 0:01:38]}  fxg3 {[%clk 0:01:36]} 29. fxg3 {[%clk 0:01:38]}  Na5 {[%clk 0:01:34]} 30. g4 {[%clk 0:01:37]}  Nc4 {[%clk 0:01:34]} 31. Bf5 {[%clk 0:01:30]}  Rb6 {[%clk 0:01:30]} 32. Rh1 {[%clk 0:01:21]}  Ne3+ {[%clk 0:01:17]} 33. Kg3 {[%clk 0:01:14]}  Nxf5+ {[%clk 0:01:17]} 34. gxf5 {[%clk 0:01:14]}  Kxf5 {[%clk 0:01:17]} 35. Rf1+ {[%clk 0:01:14]}  Ke4 {[%clk 0:01:16]} 36. Kg4 {[%clk 0:01:07]}  a5 {[%clk 0:01:16]} 37. Kxg5 {[%clk 0:01:06]}  b4 {[%clk 0:01:16]} 38. axb4 {[%clk 0:01:05]}  axb4 {[%clk 0:01:16]} 39. Re1+ {[%clk 0:01:02]}  Kd3 {[%clk 0:01:16]} 40. Re5 {[%clk 0:01:02]}  b3 {[%clk 0:01:02]} 41. Kf5 {[%clk 0:00:50]}  Ra6 {[%clk 0:00:56]} 42. Rxd5 {[%clk 0:00:49]}  Kc2 {[%clk 0:00:54]} 43. Rb5 {[%clk 0:00:45]}  Kxb2 {[%clk 0:00:54]} 44. c4 {[%clk 0:00:46]}  Kc3 {[%clk 0:00:54]} 45. c5 {[%clk 0:00:43]}  b2 {[%clk 0:00:51]} 46. d5 {[%clk 0:00:41]}  Ra5 {[%clk 0:00:41]} 47. Rxb2 {[%clk 0:00:32]}  Kxb2 {[%clk 0:00:42]} 48. Ke6 {[%clk 0:00:29]}  Rxc5 {[%clk 0:00:38]} 49. d6 {[%clk 0:00:30]}  Rc6 {[%clk 0:00:35]} 50. Ke7 {[%clk 0:00:29]}  Rc1 {[%clk 0:00:35]} 51. d7 {[%clk 0:00:29]}  Re1+ {[%clk 0:00:35]} 52. Kf7 {[%clk 0:00:29]}  Rd1 {[%clk 0:00:36]} 53. Ke7 {[%clk 0:00:30]}  Re1+ {[%clk 0:00:36]} 54. Kf7 {[%clk 0:00:30]}  Rd1 {[%clk 0:00:37]} 55. Ke7 {[%clk 0:00:31]}  Re1+ {[%clk 0:00:37]} 1/2-1/2


[Site "https://www.chess.com"]

[Event "Titled Tuesday Blitz October 11 Early 2022"]
[White "Mikhailovsky, Vladimir"]
[Black "Kuznetsova, Olga"]
[WhiteFideId "34105414"]
[BlackFideId "4191323"]
[WhiteElo "2297"]
[BlackElo "2134"]
[Result "1-0"]
[Round "08"]
[TimeControl "180+1"]
[Date "2022.10.12"]
[WhiteClock "0:00:03"]
[BlackClock "0:00:19"]

1. d4 {[%clk 0:03:00]}  Nf6 {[%clk 0:02:59]} 2. c4 {[%clk 0:03:01]}  e6 {[%clk 0:03:00]} 3. Nc3 {[%clk 0:03:01]}  d5 {[%clk 0:03:01]} 4. Nf3 {[%clk 0:02:59]}  Be7 {[%clk 0:03:01]} 5. g3 {[%clk 0:02:59]}  O-O {[%clk 0:03:00]} 6. Bg2 {[%clk 0:02:57]}  dxc4 {[%clk 0:03:00]} 7. O-O {[%clk 0:02:56]}  c5 {[%clk 0:02:59]} 8. dxc5 {[%clk 0:02:54]}  Bxc5 {[%clk 0:02:58]} 9. Qa4 {[%clk 0:02:54]}  Qe7 {[%clk 0:02:53]} 10. Ne5 {[%clk 0:02:48]}  Nbd7 {[%clk 0:02:45]} 11. Nxc4 {[%clk 0:02:48]}  Nb6 {[%clk 0:02:43]} 12. Nxb6 {[%clk 0:02:42]}  Bxb6 {[%clk 0:02:43]} 13. Bg5 {[%clk 0:02:33]}  h6 {[%clk 0:02:41]} 14. Bxf6 {[%clk 0:02:33]}  Qxf6 {[%clk 0:02:41]} 15. Rad1 {[%clk 0:02:32]}  Qf5 {[%clk 0:02:09]} 16. Nb5 {[%clk 0:02:19]}  e5 {[%clk 0:01:39]} 17. Nd6 {[%clk 0:02:16]}  Qe6 {[%clk 0:01:38]} 18. Nxb7 {[%clk 0:01:45]}  Rb8 {[%clk 0:01:23]} 19. Nd6 {[%clk 0:01:39]}  Bd7 {[%clk 0:01:23]} 20. Qa3 {[%clk 0:01:21]}  Bd4 {[%clk 0:01:10]} 21. b3 {[%clk 0:01:16]}  Rb6 {[%clk 0:01:07]} 22. Nc4 {[%clk 0:00:44]}  Ra6 {[%clk 0:01:07]} 23. Qb4 {[%clk 0:00:44]}  Rxa2 {[%clk 0:01:06]} 24. e3 {[%clk 0:00:45]}  Bb6 {[%clk 0:00:44]} 25. Rd6 {[%clk 0:00:45]}  Qe8 {[%clk 0:00:41]} 26. Nxb6 {[%clk 0:00:39]}  axb6 {[%clk 0:00:41]} 27. Rxb6 {[%clk 0:00:40]}  Be6 {[%clk 0:00:40]} 28. Qc5 {[%clk 0:00:36]}  Rb2 {[%clk 0:00:37]} 29. b4 {[%clk 0:00:34]}  Qd8 {[%clk 0:00:35]} 30. Rd6 {[%clk 0:00:27]}  Qb8 {[%clk 0:00:35]} 31. Rb6 {[%clk 0:00:26]}  Qd8 {[%clk 0:00:36]} 32. Rb7 {[%clk 0:00:20]}  Qd2 {[%clk 0:00:29]} 33. Rb6 {[%clk 0:00:13]}  e4 {[%clk 0:00:27]} 34. Bxe4 {[%clk 0:00:10]}  Bh3 {[%clk 0:00:24]} 35. Bg2 {[%clk 0:00:11]}  Bg4 {[%clk 0:00:23]} 36. Qd4 {[%clk 0:00:05]}  Qc2 {[%clk 0:00:21]} 37. Qxg4 {[%clk 0:00:04]}  Rd8 {[%clk 0:00:20]} 38. Rc6 {[%clk 0:00:04]}  Qd2 {[%clk 0:00:20]} 39. Rc8 {[%clk 0:00:04]}  Rxc8 {[%clk 0:00:19]} 40. Qxc8+ {[%clk 0:00:05]}  Kh7 {[%clk 0:00:20]} 41. Be4+ {[%clk 0:00:05]}  g6 {[%clk 0:00:21]} 42. Qf8 {[%clk 0:00:05]}  Qd7 {[%clk 0:00:20]} 43. Bf3 {[%clk 0:00:04]}  Rxb4 {[%clk 0:00:19]} 44. Qxb4 {[%clk 0:00:03]} 1-0


[Site "https://www.chess.com"]

[Event "Titled Tuesday Blitz October 11 Early 2022"]
[White "Mills, Morgen"]
[Black "Melikhov, Evgeny V."]
[WhiteFideId "2013304"]
[BlackFideId "4122046"]
[WhiteElo "2195"]
[BlackElo "2169"]
[Result "1/2-1/2"]
[Round "08"]
[TimeControl "180+1"]
[Date "2022.10.12"]
[WhiteClock "0:00:03"]
[BlackClock "0:00:06"]

1. e4 {[%clk 0:03:00]}  c5 {[%clk 0:02:55]} 2. Nf3 {[%clk 0:03:01]}  d6 {[%clk 0:02:54]} 3. Bb5+ {[%clk 0:03:01]}  Nd7 {[%clk 0:02:54]} 4. d4 {[%clk 0:03:01]}  cxd4 {[%clk 0:02:53]} 5. Qxd4 {[%clk 0:03:02]}  a6 {[%clk 0:02:52]} 6. Bxd7+ {[%clk 0:03:01]}  Bxd7 {[%clk 0:02:52]} 7. O-O {[%clk 0:03:02]}  e5 {[%clk 0:02:51]} 8. Qd3 {[%clk 0:03:02]}  Rc8 {[%clk 0:02:49]} 9. c4 {[%clk 0:03:00]}  Be6 {[%clk 0:02:41]} 10. b3 {[%clk 0:02:59]}  h6 {[%clk 0:02:34]} 11. Rd1 {[%clk 0:02:54]}  Qd7 {[%clk 0:02:28]} 12. Ba3 {[%clk 0:02:52]}  Nf6 {[%clk 0:02:22]} 13. Nc3 {[%clk 0:02:48]}  Bg4 {[%clk 0:01:27]} 14. Bxd6 {[%clk 0:02:39]}  Bxd6 {[%clk 0:01:27]} 15. Qxd6 {[%clk 0:02:39]}  Qxd6 {[%clk 0:01:27]} 16. Rxd6 {[%clk 0:02:38]}  Bxf3 {[%clk 0:01:27]} 17. gxf3 {[%clk 0:02:39]}  Ke7 {[%clk 0:01:25]} 18. Rad1 {[%clk 0:02:39]}  Rhd8 {[%clk 0:01:21]} 19. Rxd8 {[%clk 0:02:31]}  Rxd8 {[%clk 0:01:21]} 20. Rxd8 {[%clk 0:02:27]}  Kxd8 {[%clk 0:01:21]} 21. Nd5 {[%clk 0:02:25]}  Nd7 {[%clk 0:01:20]} 22. Kf1 {[%clk 0:02:24]}  Nc5 {[%clk 0:01:12]} 23. Ke2 {[%clk 0:02:24]}  Kd7 {[%clk 0:01:09]} 24. Ke3 {[%clk 0:02:24]}  Kd6 {[%clk 0:01:05]} 25. f4 {[%clk 0:02:23]}  exf4+ {[%clk 0:00:55]} 26. Nxf4 {[%clk 0:02:20]}  g5 {[%clk 0:00:48]} 27. Nd3 {[%clk 0:02:07]}  Nd7 {[%clk 0:00:41]} 28. Kd4 {[%clk 0:02:05]}  f6 {[%clk 0:00:39]} 29. c5+ {[%clk 0:01:59]}  Ke6 {[%clk 0:00:38]} 30. b4 {[%clk 0:01:56]}  h5 {[%clk 0:00:30]} 31. a4 {[%clk 0:01:44]}  h4 {[%clk 0:00:30]} 32. h3 {[%clk 0:01:42]}  f5 {[%clk 0:00:25]} 33. exf5+ {[%clk 0:01:26]}  Kxf5 {[%clk 0:00:25]} 34. f3 {[%clk 0:01:26]}  Nf6 {[%clk 0:00:21]} 35. b5 {[%clk 0:01:23]}  axb5 {[%clk 0:00:21]} 36. axb5 {[%clk 0:01:24]}  Ke6 {[%clk 0:00:16]} 37. Nf2 {[%clk 0:01:14]}  Nd7 {[%clk 0:00:13]} 38. Ne4 {[%clk 0:01:13]}  Kf5 {[%clk 0:00:13]} 39. Nd6+ {[%clk 0:01:09]}  Kf4 {[%clk 0:00:12]} 40. Nf7 {[%clk 0:01:01]}  Nf6 {[%clk 0:00:09]} 41. c6 {[%clk 0:00:57]}  bxc6 {[%clk 0:00:10]} 42. bxc6 {[%clk 0:00:56]}  Ne8 {[%clk 0:00:10]} 43. Kd5 {[%clk 0:00:53]}  Kxf3 {[%clk 0:00:08]} 44. Nxg5+ {[%clk 0:00:53]}  Kf4 {[%clk 0:00:09]} 45. Ne6+ {[%clk 0:00:34]}  Kg3 {[%clk 0:00:08]} 46. Ng5 {[%clk 0:00:22]}  Kf4 {[%clk 0:00:08]} 47. Nh7 {[%clk 0:00:22]}  Nc7+ {[%clk 0:00:06]} 48. Kd6 {[%clk 0:00:21]}  Na6 {[%clk 0:00:06]} 49. Ke6 {[%clk 0:00:20]}  Kg3 {[%clk 0:00:06]} 50. Ng5 {[%clk 0:00:19]}  Kf4 {[%clk 0:00:06]} 51. Kf6 {[%clk 0:00:19]}  Nc7 {[%clk 0:00:06]} 52. Kg6 {[%clk 0:00:17]}  Ke5 {[%clk 0:00:05]} 53. Kh5 {[%clk 0:00:16]}  Kd6 {[%clk 0:00:05]} 54. Kxh4 {[%clk 0:00:15]}  Kxc6 {[%clk 0:00:06]} 55. Kh5 {[%clk 0:00:15]}  Kd7 {[%clk 0:00:06]} 56. Kg6 {[%clk 0:00:15]}  Ke7 {[%clk 0:00:07]} 57. h4 {[%clk 0:00:13]}  Nd5 {[%clk 0:00:07]} 58. Nh3 {[%clk 0:00:09]}  Kf8 {[%clk 0:00:07]} 59. h5 {[%clk 0:00:08]}  Kg8 {[%clk 0:00:07]} 60. h6 {[%clk 0:00:07]}  Ne7+ {[%clk 0:00:06]} 61. Kh5 {[%clk 0:00:01]}  Kh7 {[%clk 0:00:06]} 62. Ng5+ {[%clk 0:00:02]}  Kh8 {[%clk 0:00:06]} 63. Ne6 {[%clk 0:00:02]}  Ng8 {[%clk 0:00:06]} 64. Kg5 {[%clk 0:00:03]}  Nxh6 {[%clk 0:00:06]} 1/2-1/2


[Site "https://www.chess.com"]